[Event "Open NK Rapid 2025 bord 26-50"]
[Site "Helmond, Netherlands"]
[Date "2025.05.03"]
[Round "8.17"]
[White "Alhasan, Husam"]
[Black "Garay, Enzo"]
[Result "0-1"]
[TimeControl "15 min +5 sec increment"]
[WhiteFideId "11515090"]
[BlackFideId "40104125"]
[WhiteElo "1795"]
[BlackElo "1933"]

1. d4 {[%clk 00:15:08]} {[%emt 00:00:02]} e6 {[%clk 00:15:09]} {[%emt
00:00:01]} 2. c4 {[%clk 00:15:11]} {[%emt 00:00:02]} Nf6 {[%clk 00:15:13]}
{[%emt 00:00:01]} 3. Nc3 {[%clk 00:15:15]} {[%emt 00:00:01]} Bb4 {[%clk
00:15:16]} {[%emt 00:00:02]} 4. a3 {[%clk 00:15:19]} Bxc3+ {[%clk 00:15:19]}
{[%emt 00:00:02]} 5. bxc3 {[%clk 00:15:23]} {[%emt 00:00:02]} c5 {[%clk
00:15:22]} 6. e3 {[%clk 00:15:26]} {[%emt 00:00:02]} O-O {[%clk 00:15:25]}
{[%emt 00:00:02]} 7. Bd3 {[%clk 00:15:16]} {[%emt 00:00:15]} b6 {[%clk
00:15:19]} {[%emt 00:00:11]} 8. f3 {[%clk 00:15:08]} {[%emt 00:00:13]} d6
{[%clk 00:15:22]} {[%emt 00:00:02]} 9. Ne2 {[%clk 00:15:02]} {[%emt 00:00:10]}
Nc6 {[%clk 00:15:26]} {[%emt 00:00:02]} 10. e4 {[%clk 00:14:39]} {[%emt
00:00:28]} e5 {[%clk 00:15:29]} {[%emt 00:00:01]} 11. Be3 {[%clk 00:14:17]}
{[%emt 00:00:27]} Qe7 {[%clk 00:15:16]} {[%emt 00:00:19]} 12. g4 {[%clk
00:13:31]} {[%emt 00:00:51]} Bxg4 {[%clk 00:14:21]} {[%emt 00:01:00]} 13. fxg4
{[%clk 00:11:34]} {[%emt 00:02:01]} Nxg4 {[%clk 00:14:24]} {[%emt 00:00:02]} 14.
Qd2 {[%clk 00:10:37]} {[%emt 00:01:02]} exd4 {[%clk 00:14:27]} {[%emt
00:00:03]} 15. cxd4 {[%clk 00:09:09]} {[%emt 00:01:33]} cxd4 {[%clk 00:14:27]}
{[%emt 00:00:05]} 16. Bf4 {[%clk 00:08:34]} {[%emt 00:00:39]} Nce5 {[%clk
00:14:11]} {[%emt 00:00:22]} 17. Rg1 {[%clk 00:07:56]} {[%emt 00:00:43]} Nf3+
{[%clk 00:14:09]} {[%emt 00:00:07]} 18. Kd1 {[%clk 00:07:30]} {[%emt 00:00:30]}
Nf2+ {[%clk 00:14:12]} {[%emt 00:00:02]} 19. Kc2 {[%clk 00:07:21]} {[%emt
00:00:15]} Nxd2 {[%clk 00:14:14]} {[%emt 00:00:03]} 20. Kxd2 {[%clk 00:07:24]}
{[%emt 00:00:02]} Nxe4+ {[%clk 00:14:14]} {[%emt 00:00:05]} 21. Kc2 {[%clk
00:07:19]} {[%emt 00:00:10]} d5 {[%clk 00:14:06]} {[%emt 00:00:13]} 22. Nxd4
{[%clk 00:06:24]} {[%emt 00:01:00]} dxc4 {[%clk 00:13:45]} {[%emt 00:00:26]} 23.
Bxc4 {[%clk 00:06:11]} {[%emt 00:00:18]} Nc5 {[%clk 00:13:40]} {[%emt
00:00:09]} 24. Rae1 {[%clk 00:05:39]} {[%emt 00:00:38]} Qd7 {[%clk 00:13:44]}
25. Be5 {[%clk 00:02:49]} {[%emt 00:02:54]} g6 {[%clk 00:13:20]} {[%emt
00:00:29]} 26. Bb5 {[%clk 00:02:13]} {[%emt 00:00:42]} Qd5 {[%clk 00:13:07]}
{[%emt 00:00:16]} 27. Nf5 {[%clk 00:01:22]} {[%emt 00:00:58]} Qb3+ {[%clk
00:12:53]} {[%emt 00:00:18]} 28. Kc1 {[%clk 00:01:10]} {[%emt 00:00:18]} h5
{[%clk 00:12:20]} {[%emt 00:00:36]} 29. Ne7+ {[%clk 00:00:19]} {[%emt
00:00:57]} Kh7 {[%clk 00:12:23]} {[%emt 00:00:02]} 30. Be2 {[%clk 00:00:00]}
{[%emt 00:00:22]} 0-1

[Event "Open NK Rapid 2025 bord 26-50"]
[Site "Helmond, Netherlands"]
[Date "2025.05.03"]
[Round "8.18"]
[White "Timmer, Michel"]
[Black "Meulmeester, Luuk"]
[Result "1-0"]
[TimeControl "15 min +5 sec increment"]
[WhiteFideId "40104524"]
[BlackFideId "40111776"]
[WhiteElo "1796"]
[BlackElo "1929"]

1. e4 {[%clk 00:15:06]} {[%emt 00:00:03]} c5 {[%clk 00:15:09]} {[%emt
00:00:02]} 2. c3 {[%clk 00:15:09]} {[%emt 00:00:02]} Nf6 {[%clk 00:15:11]}
{[%emt 00:00:03]} 3. e5 {[%clk 00:15:13]} {[%emt 00:00:02]} Nd5 {[%clk
00:15:14]} {[%emt 00:00:01]} 4. Nf3 {[%clk 00:15:16]} {[%emt 00:00:02]} Nc6
{[%clk 00:15:17]} {[%emt 00:00:03]} 5. Bc4 {[%clk 00:15:19]} {[%emt 00:00:02]}
Nb6 {[%clk 00:15:19]} {[%emt 00:00:02]} 6. Bb3 {[%clk 00:15:23]} {[%emt
00:00:02]} d6 {[%clk 00:14:17]} {[%emt 00:01:07]} 7. exd6 {[%clk 00:15:25]}
{[%emt 00:00:02]} e6 {[%clk 00:14:13]} {[%emt 00:00:09]} 8. O-O {[%clk
00:14:45]} {[%emt 00:00:45]} Bxd6 {[%clk 00:14:14]} {[%emt 00:00:04]} 9. d4
{[%clk 00:14:45]} {[%emt 00:00:04]} cxd4 {[%clk 00:13:19]} {[%emt 00:01:01]} 10.
cxd4 {[%clk 00:14:29]} {[%emt 00:00:21]} O-O {[%clk 00:13:19]} {[%emt
00:00:05]} 11. Nc3 {[%clk 00:14:28]} {[%emt 00:00:06]} Bd7 {[%clk 00:13:06]}
{[%emt 00:00:18]} 12. Re1 {[%clk 00:14:18]} {[%emt 00:00:15]} Ne7 {[%clk
00:12:55]} {[%emt 00:00:16]} 13. Ne5 {[%clk 00:14:15]} {[%emt 00:00:08]} Ng6
{[%clk 00:12:48]} {[%emt 00:00:12]} 14. Qf3 {[%clk 00:13:51]} {[%emt 00:00:28]}
Qb8 {[%clk 00:10:22]} {[%emt 00:02:32]} 15. Nxd7 {[%clk 00:11:08]} {[%emt
00:02:48]} Nxd7 {[%clk 00:10:25]} {[%emt 00:00:02]} 16. g3 {[%clk 00:11:05]}
{[%emt 00:00:08]} Nf6 {[%clk 00:09:02]} {[%emt 00:01:28]} 17. Bg5 {[%clk
00:10:38]} {[%emt 00:00:32]} Be7 {[%clk 00:08:46]} {[%emt 00:00:21]} 18. h4
{[%clk 00:09:17]} {[%emt 00:01:25]} Rd8 {[%clk 00:07:59]} {[%emt 00:00:53]} 19.
Rad1 {[%clk 00:08:22]} {[%emt 00:01:01]} Qc7 {[%clk 00:06:50]} {[%emt
00:01:14]} 20. h5 {[%clk 00:07:19]} {[%emt 00:01:07]} Nf8 {[%clk 00:06:52]}
{[%emt 00:00:03]} 21. d5 {[%clk 00:07:06]} {[%emt 00:00:19]} Qb6 {[%clk
00:04:50]} {[%emt 00:02:06]} 22. h6 {[%clk 00:06:03]} {[%emt 00:01:08]} Re8
{[%clk 00:01:56]} {[%emt 00:03:00]} 23. hxg7 {[%clk 00:05:49]} {[%emt
00:00:19]} Kxg7 {[%clk 00:02:00]} {[%emt 00:00:01]} 24. d6 {[%clk 00:02:23]}
{[%emt 00:03:31]} Bd8 {[%clk 00:01:54]} {[%emt 00:00:11]} 25. Ba4 {[%clk
00:01:53]} {[%emt 00:00:35]} N6d7 {[%clk 00:01:36]} {[%emt 00:00:23]} 26. Be3
{[%clk 00:01:31]} {[%emt 00:00:26]} Qb4 {[%clk 00:01:28]} {[%emt 00:00:12]} 27.
Rd4 {[%clk 00:01:01]} {[%emt 00:00:36]} Qxb2 {[%clk 00:00:53]} {[%emt
00:00:40]} 28. Rg4+ {[%clk 00:00:59]} {[%emt 00:00:08]} Kh8 {[%clk 00:00:57]}
{[%emt 00:00:01]} 29. Qxf7 {[%clk 00:00:54]} {[%emt 00:00:09]} Bf6 {[%clk
00:00:45]} {[%emt 00:00:17]} 30. Rg8# {[%clk 00:00:37]} {[%emt 00:00:15]} 1-0

[Event "Open NK Rapid 2025 bord 26-50"]
[Site "Helmond, Netherlands"]
[Date "2025.05.03"]
[Round "8.19"]
[White "De Oude, Sybe"]
[Black "Ganeshram, Nirupa"]
[Result "1/2-1/2"]
[TimeControl "15 min +5 sec increment"]
[WhiteFideId "40110052"]
[BlackFideId "1083031"]
[WhiteElo "1914"]
[BlackElo "1679"]

1. e4 {[%clk 00:15:08]} {[%emt 00:00:01]} c5 {[%clk 00:15:09]} {[%emt
00:00:01]} 2. Nc3 {[%clk 00:15:12]} {[%emt 00:00:02]} Nc6 {[%clk 00:15:10]}
{[%emt 00:00:03]} 3. f4 {[%clk 00:15:15]} {[%emt 00:00:02]} g6 {[%clk
00:15:11]} {[%emt 00:00:04]} 4. Nf3 {[%clk 00:15:18]} {[%emt 00:00:03]} Bg7
{[%clk 00:15:14]} {[%emt 00:00:02]} 5. Bb5 {[%clk 00:15:10]} {[%emt 00:00:12]}
Nd4 {[%clk 00:14:56]} {[%emt 00:00:24]} 6. O-O {[%clk 00:15:02]} {[%emt
00:00:13]} a6 {[%clk 00:14:53]} {[%emt 00:00:09]} 7. Bc4 {[%clk 00:14:35]}
{[%emt 00:00:31]} e6 {[%clk 00:14:34]} {[%emt 00:00:23]} 8. a4 {[%clk
00:14:09]} {[%emt 00:00:32]} Ne7 {[%clk 00:14:26]} {[%emt 00:00:12]} 9. Nxd4
{[%clk 00:13:46]} {[%emt 00:00:28]} Bxd4+ {[%clk 00:14:16]} {[%emt 00:00:15]}
10. Kh1 {[%clk 00:13:50]} {[%emt 00:00:02]} d5 {[%clk 00:13:15]} {[%emt
00:01:06]} 11. exd5 {[%clk 00:13:03]} {[%emt 00:00:51]} exd5 {[%clk 00:13:16]}
{[%emt 00:00:04]} 12. Be2 {[%clk 00:12:20]} {[%emt 00:00:48]} O-O {[%clk
00:13:05]} {[%emt 00:00:17]} 13. d3 {[%clk 00:11:32]} {[%emt 00:00:53]} Nf5
{[%clk 00:11:44]} {[%emt 00:01:26]} 14. Bf3 {[%clk 00:10:42]} {[%emt 00:00:55]}
Re8 {[%clk 00:08:51]} {[%emt 00:02:58]} 15. Re1 {[%clk 00:09:07]} {[%emt
00:01:40]} Be6 {[%clk 00:08:20]} {[%emt 00:00:36]} 16. Ne2 {[%clk 00:07:36]}
{[%emt 00:01:35]} Bf2 {[%clk 00:07:13]} {[%emt 00:01:13]} 17. Rf1 {[%clk
00:04:50]} {[%emt 00:02:51]} Qh4 {[%clk 00:06:44]} {[%emt 00:00:34]} 18. h3
{[%clk 00:03:37]} {[%emt 00:01:17]} Ng3+ {[%clk 00:03:54]} {[%emt 00:02:56]} 19.
Nxg3 {[%clk 00:03:32]} {[%emt 00:00:09]} Bxg3 {[%clk 00:03:39]} {[%emt
00:00:20]} 20. Bg4 {[%clk 00:02:32]} {[%emt 00:01:06]} Bxg4 {[%clk 00:03:06]}
{[%emt 00:00:39]} 21. Qxg4 {[%clk 00:02:33]} {[%emt 00:00:03]} Qxg4 {[%clk
00:03:04]} {[%emt 00:00:07]} 22. hxg4 {[%clk 00:02:37]} Re2 {[%clk 00:02:57]}
{[%emt 00:00:12]} 23. c4 {[%clk 00:02:27]} {[%emt 00:00:15]} d4 {[%clk
00:02:08]} {[%emt 00:00:55]} 24. b3 {[%clk 00:01:56]} {[%emt 00:00:36]} Rae8
{[%clk 00:02:09]} {[%emt 00:00:03]} 25. Ba3 {[%clk 00:01:46]} {[%emt 00:00:14]}
b6 {[%clk 00:01:49]} {[%emt 00:00:25]} 26. a5 {[%clk 00:01:50]} {[%emt
00:00:02]} bxa5 {[%clk 00:00:54]} {[%emt 00:01:00]} 27. Bxc5 {[%clk 00:01:53]}
{[%emt 00:00:02]} Rb2 {[%clk 00:00:40]} {[%emt 00:00:19]} 28. Rxa5 {[%clk
00:01:26]} {[%emt 00:00:32]} Rxb3 {[%clk 00:00:39]} {[%emt 00:00:07]} 29. Rxa6
{[%clk 00:01:10]} {[%emt 00:00:20]} Rxd3 {[%clk 00:00:41]} {[%emt 00:00:03]} 30.
Rd6 {[%clk 00:01:08]} {[%emt 00:00:07]} Rde3 {[%clk 00:00:27]} {[%emt
00:00:19]} 31. Rxd4 {[%clk 00:01:05]} {[%emt 00:00:08]} Re1 {[%clk 00:00:26]}
{[%emt 00:00:06]} 32. Rd1 {[%clk 00:01:08]} {[%emt 00:00:01]} Rxd1 {[%clk
00:00:22]} {[%emt 00:00:09]} 33. Rxd1 {[%clk 00:01:12]} {[%emt 00:00:02]} Bxf4
{[%clk 00:00:21]} {[%emt 00:00:06]} 34. Bf2 {[%clk 00:00:45]} {[%emt 00:00:32]}
Rc8 {[%clk 00:00:14]} {[%emt 00:00:13]} 35. c5 {[%clk 00:00:30]} {[%emt
00:00:20]} Kf8 {[%clk 00:00:13]} {[%emt 00:00:04]} 36. g3 {[%clk 00:00:29]}
{[%emt 00:00:06]} Bc7 {[%clk 00:00:14]} {[%emt 00:00:05]} 37. Kg2 {[%clk
00:00:32]} {[%emt 00:00:02]} Ke7 {[%clk 00:00:17]} {[%emt 00:00:02]} 38. Kf3
{[%clk 00:00:32]} {[%emt 00:00:04]} Rd8 {[%clk 00:00:17]} {[%emt 00:00:05]} 39.
Rxd8 {[%clk 00:00:19]} {[%emt 00:00:18]} Bxd8 {[%clk 00:00:18]} {[%emt
00:00:05]} 40. Ke4 {[%clk 00:00:20]} {[%emt 00:00:03]} Ke6 {[%clk 00:00:21]}
{[%emt 00:00:02]} 41. Be3 {[%clk 00:00:15]} {[%emt 00:00:11]} g5 {[%clk
00:00:10]} {[%emt 00:00:17]} 42. Kd4 {[%clk 00:00:16]} {[%emt 00:00:03]} h6
{[%clk 00:00:11]} {[%emt 00:00:03]} 43. Ke4 {[%clk 00:00:16]} {[%emt 00:00:06]}
Bc7 {[%clk 00:00:14]} {[%emt 00:00:02]} 44. Bf2 {[%clk 00:00:17]} {[%emt
00:00:04]} Bb8 {[%clk 00:00:17]} {[%emt 00:00:02]} 1/2-1/2

[Event "Open NK Rapid 2025 bord 26-50"]
[Site "Helmond, Netherlands"]
[Date "2025.05.03"]
[Round "8.20"]
[White "Kryshtopa, Dmytro"]
[Black "Jara Segovia, Jesus Javier"]
[Result "0-1"]
[TimeControl "15 min +5 sec increment"]
[WhiteFideId "34160876"]
[BlackFideId "3925439"]
[WhiteElo "1791"]
[BlackElo "1909"]

1. c4 {[%clk 00:13:27]} {[%emt 00:01:43]} Nf6 {[%clk 00:15:07]} {[%emt
00:00:03]} 2. Nc3 {[%clk 00:13:31]} {[%emt 00:00:02]} d6 {[%clk 00:15:11]}
{[%emt 00:00:01]} 3. Nf3 {[%clk 00:13:17]} {[%emt 00:00:19]} g6 {[%clk
00:15:14]} {[%emt 00:00:02]} 4. d4 {[%clk 00:13:03]} {[%emt 00:00:19]} Bg7
{[%clk 00:15:17]} {[%emt 00:00:01]} 5. e4 {[%clk 00:13:07]} {[%emt 00:00:02]}
c6 {[%clk 00:15:21]} 6. Be2 {[%clk 00:13:08]} {[%emt 00:00:04]} O-O {[%clk
00:15:24]} {[%emt 00:00:02]} 7. O-O {[%clk 00:13:03]} {[%emt 00:00:11]} a6
{[%clk 00:15:27]} {[%emt 00:00:01]} 8. Be3 {[%clk 00:12:42]} {[%emt 00:00:26]}
Ng4 {[%clk 00:15:23]} {[%emt 00:00:09]} 9. Bg5 {[%clk 00:12:36]} {[%emt
00:00:11]} b5 {[%clk 00:15:20]} {[%emt 00:00:07]} 10. b3 {[%clk 00:11:49]}
{[%emt 00:00:52]} b4 {[%clk 00:15:14]} {[%emt 00:00:11]} 11. Na4 {[%clk
00:11:28]} {[%emt 00:00:27]} Re8 {[%clk 00:15:16]} {[%emt 00:00:03]} 12. Qd2
{[%clk 00:10:56]} {[%emt 00:00:37]} a5 {[%clk 00:15:06]} {[%emt 00:00:14]} 13.
Rad1 {[%clk 00:10:30]} {[%emt 00:00:31]} Nf6 {[%clk 00:15:07]} {[%emt
00:00:05]} 14. Qf4 {[%clk 00:09:48]} {[%emt 00:00:47]} Qc7 {[%clk 00:14:53]}
{[%emt 00:00:19]} 15. Bh6 {[%clk 00:09:36]} {[%emt 00:00:17]} Bh8 {[%clk
00:14:45]} {[%emt 00:00:12]} 16. c5 {[%clk 00:09:05]} {[%emt 00:00:37]} Ba6
{[%clk 00:14:30]} {[%emt 00:00:20]} 17. cxd6 {[%clk 00:08:36]} {[%emt
00:00:34]} exd6 {[%clk 00:14:32]} {[%emt 00:00:02]} 18. Bxa6 {[%clk 00:08:16]}
{[%emt 00:00:26]} Rxe4 {[%clk 00:14:17]} {[%emt 00:00:20]} 19. Qd2 {[%clk
00:07:36]} {[%emt 00:00:45]} Nxa6 {[%clk 00:14:14]} {[%emt 00:00:08]} 20. Ng5
{[%clk 00:07:11]} {[%emt 00:00:30]} Rh4 {[%clk 00:13:30]} {[%emt 00:00:48]} 21.
Nf3 {[%clk 00:07:12]} {[%emt 00:00:05]} Re4 {[%clk 00:13:27]} {[%emt 00:00:07]}
22. Ng5 {[%clk 00:07:06]} {[%emt 00:00:12]} Re7 {[%clk 00:13:20]} {[%emt
00:00:11]} 23. Rfe1 {[%clk 00:06:41]} {[%emt 00:00:31]} Rae8 {[%clk 00:13:23]}
{[%emt 00:00:02]} 24. Rxe7 {[%clk 00:06:25]} {[%emt 00:00:21]} Rxe7 {[%clk
00:13:26]} {[%emt 00:00:01]} 25. Nb2 {[%clk 00:06:21]} {[%emt 00:00:10]} d5
{[%clk 00:13:20]} {[%emt 00:00:11]} 26. f3 {[%clk 00:06:13]} {[%emt 00:00:13]}
Nb8 {[%clk 00:12:49]} {[%emt 00:00:36]} 27. Nd3 {[%clk 00:06:00]} {[%emt
00:00:18]} Nfd7 {[%clk 00:12:28]} {[%emt 00:00:25]} 28. Nf2 {[%clk 00:05:35]}
{[%emt 00:00:30]} Nf6 {[%clk 00:11:46]} {[%emt 00:00:47]} 29. Ngh3 {[%clk
00:05:34]} {[%emt 00:00:06]} Nbd7 {[%clk 00:11:36]} {[%emt 00:00:15]} 30. Bf4
{[%clk 00:05:33]} {[%emt 00:00:07]} Qb6 {[%clk 00:11:32]} {[%emt 00:00:08]} 31.
Bd6 {[%clk 00:03:24]} {[%emt 00:02:15]} Re6 {[%clk 00:11:31]} {[%emt 00:00:05]}
32. Bf4 {[%clk 00:03:25]} {[%emt 00:00:05]} Qd8 {[%clk 00:11:24]} {[%emt
00:00:12]} 33. Ng5 {[%clk 00:03:24]} {[%emt 00:00:06]} Re8 {[%clk 00:11:18]}
{[%emt 00:00:10]} 34. Rc1 {[%clk 00:03:23]} {[%emt 00:00:07]} Qb6 {[%clk
00:11:02]} {[%emt 00:00:21]} 35. Be3 {[%clk 00:02:29]} {[%emt 00:00:59]} Nf8
{[%clk 00:10:56]} {[%emt 00:00:10]} 36. Nd3 {[%clk 00:02:16]} {[%emt 00:00:19]}
N6d7 {[%clk 00:10:42]} {[%emt 00:00:18]} 37. Nc5 {[%clk 00:02:09]} {[%emt
00:00:13]} Nxc5 {[%clk 00:10:18]} {[%emt 00:00:29]} 38. Rxc5 {[%clk 00:02:13]}
{[%emt 00:00:02]} Ne6 {[%clk 00:10:17]} {[%emt 00:00:05]} 39. Nxe6 {[%clk
00:01:47]} {[%emt 00:00:31]} Rxe6 {[%clk 00:10:21]} 40. Bf2 {[%clk 00:01:23]}
{[%emt 00:00:29]} Bg7 {[%clk 00:10:21]} {[%emt 00:00:04]} 41. Rc1 {[%clk
00:01:17]} {[%emt 00:00:12]} Qa6 {[%clk 00:10:10]} {[%emt 00:00:16]} 42. Re1
{[%clk 00:01:13]} {[%emt 00:00:09]} Qc8 {[%clk 00:08:13]} {[%emt 00:02:01]} 43.
Rxe6 {[%clk 00:01:12]} {[%emt 00:00:07]} Qxe6 {[%clk 00:08:08]} {[%emt
00:00:10]} 44. Kf1 {[%clk 00:00:34]} {[%emt 00:00:42]} Qf5 {[%clk 00:07:51]}
{[%emt 00:00:23]} 45. Qe1 {[%clk 00:00:09]} {[%emt 00:00:29]} Qd3+ {[%clk
00:07:46]} {[%emt 00:00:10]} 46. Kg1 {[%clk 00:00:12]} {[%emt 00:00:03]} Bxd4
{[%clk 00:07:28]} {[%emt 00:00:22]} 47. Qe8+ {[%clk 00:00:07]} {[%emt
00:00:11]} Kg7 {[%clk 00:07:32]} {[%emt 00:00:01]} 48. Bxd4+ {[%clk 00:00:10]}
{[%emt 00:00:02]} Qxd4+ {[%clk 00:07:35]} {[%emt 00:00:01]} 49. Kf1 {[%clk
00:00:14]} {[%emt 00:00:01]} c5 {[%clk 00:07:01]} {[%emt 00:00:39]} 50. Qb5
{[%clk 00:00:15]} {[%emt 00:00:04]} c4 {[%clk 00:06:50]} {[%emt 00:00:16]} 51.
Qxa5 {[%clk 00:00:07]} {[%emt 00:00:13]} c3 {[%clk 00:06:50]} {[%emt 00:00:05]}
52. Qc7 {[%clk 00:00:00]} {[%emt 00:00:07]} 0-1

[Event "Open NK Rapid 2025 bord 26-50"]
[Site "Helmond, Netherlands"]
[Date "2025.05.03"]
[Round "8.21"]
[White "Van Happen, Niels"]
[Black "Jansen, Marijn"]
[Result "0-1"]
[TimeControl "15 min +5 sec increment"]
[WhiteFideId "40101100"]
[BlackFideId "1089587"]
[WhiteElo "1782"]
[BlackElo "1880"]

1. e4 {[%clk 00:15:08]} {[%emt 00:00:02]} c6 {[%clk 00:15:10]} 2. d4 {[%clk
00:15:11]} {[%emt 00:00:01]} d5 {[%clk 00:15:14]} 3. e5 {[%clk 00:15:14]}
{[%emt 00:00:02]} c5 {[%clk 00:15:17]} {[%emt 00:00:04]} 4. c3 {[%clk
00:15:17]} {[%emt 00:00:01]} Nc6 {[%clk 00:15:21]} {[%emt 00:00:02]} 5. Be2
{[%clk 00:15:20]} {[%emt 00:00:02]} cxd4 {[%clk 00:15:14]} {[%emt 00:00:12]} 6.
cxd4 {[%clk 00:15:22]} {[%emt 00:00:02]} Bf5 {[%clk 00:15:18]} {[%emt
00:00:02]} 7. Nf3 {[%clk 00:15:25]} {[%emt 00:00:01]} e6 {[%clk 00:15:16]}
{[%emt 00:00:07]} 8. O-O {[%clk 00:15:21]} {[%emt 00:00:08]} Nge7 {[%clk
00:15:15]} {[%emt 00:00:07]} 9. Nc3 {[%clk 00:14:30]} {[%emt 00:00:56]} Bg6
{[%clk 00:15:07]} {[%emt 00:00:13]} 10. Bf4 {[%clk 00:11:58]} {[%emt 00:02:37]}
Nf5 {[%clk 00:15:07]} {[%emt 00:00:05]} 11. Rc1 {[%clk 00:11:44]} {[%emt
00:00:18]} Be7 {[%clk 00:15:06]} {[%emt 00:00:06]} 12. a3 {[%clk 00:11:07]}
{[%emt 00:00:44]} a6 {[%clk 00:14:54]} {[%emt 00:00:17]} 13. b4 {[%clk
00:10:59]} {[%emt 00:00:12]} Bh5 {[%clk 00:14:55]} {[%emt 00:00:01]} 14. b5
{[%clk 00:10:09]} {[%emt 00:00:59]} axb5 {[%clk 00:14:33]} {[%emt 00:00:27]} 15.
Nxb5 {[%clk 00:09:50]} {[%emt 00:00:23]} O-O {[%clk 00:14:28]} {[%emt
00:00:10]} 16. Rc3 {[%clk 00:07:55]} {[%emt 00:02:00]} Qa5 {[%clk 00:14:10]}
{[%emt 00:00:23]} 17. Qd3 {[%clk 00:07:26]} {[%emt 00:00:33]} Bg6 {[%clk
00:13:26]} {[%emt 00:00:50]} 18. Qd2 {[%clk 00:06:45]} {[%emt 00:00:46]} Bh5
{[%clk 00:12:41]} {[%emt 00:00:50]} 19. Qd3 {[%clk 00:06:47]} {[%emt 00:00:04]}
Bxf3 {[%clk 00:09:19]} {[%emt 00:03:26]} 20. Bxf3 {[%clk 00:06:38]} {[%emt
00:00:13]} Qb6 {[%clk 00:09:21]} {[%emt 00:00:04]} 21. Be3 {[%clk 00:05:56]}
{[%emt 00:00:47]} Ra4 {[%clk 00:09:10]} {[%emt 00:00:16]} 22. Rd1 {[%clk
00:05:31]} {[%emt 00:00:27]} Rfa8 {[%clk 00:08:46]} {[%emt 00:00:32]} 23. g4
{[%clk 00:05:25]} {[%emt 00:00:11]} Nxe3 {[%clk 00:08:13]} {[%emt 00:00:38]} 24.
fxe3 {[%clk 00:05:11]} {[%emt 00:00:19]} R4a5 {[%clk 00:07:29]} {[%emt
00:00:50]} 25. Rb1 {[%clk 00:05:02]} {[%emt 00:00:13]} Qd8 {[%clk 00:07:01]}
{[%emt 00:00:32]} 26. e4 {[%clk 00:04:14]} {[%emt 00:00:54]} Ra4 {[%clk
00:05:53]} {[%emt 00:01:13]} 27. exd5 {[%clk 00:04:00]} {[%emt 00:00:19]} exd5
{[%clk 00:05:57]} {[%emt 00:00:01]} 28. Bd1 {[%clk 00:03:13]} {[%emt 00:00:52]}
R4a6 {[%clk 00:05:50]} {[%emt 00:00:10]} 29. Bc2 {[%clk 00:03:12]} {[%emt
00:00:09]} g6 {[%clk 00:05:47]} {[%emt 00:00:07]} 30. Qf3 {[%clk 00:02:41]}
{[%emt 00:00:35]} Rb6 {[%clk 00:05:12]} {[%emt 00:00:40]} 31. a4 {[%clk
00:02:19]} {[%emt 00:00:28]} Rc8 {[%clk 00:04:28]} {[%emt 00:00:49]} 32. Rf1
{[%clk 00:02:04]} {[%emt 00:00:20]} Qe8 {[%clk 00:04:05]} {[%emt 00:00:27]} 33.
Qxd5 {[%clk 00:01:45]} {[%emt 00:00:25]} Rd8 {[%clk 00:03:40]} {[%emt
00:00:30]} 34. Qe4 {[%clk 00:01:26]} {[%emt 00:00:21]} Bb4 {[%clk 00:03:10]}
{[%emt 00:00:39]} 35. Rcf3 {[%clk 00:01:06]} {[%emt 00:00:24]} Rxb5 {[%clk
00:02:48]} {[%emt 00:00:28]} 36. axb5 {[%clk 00:01:00]} {[%emt 00:00:11]} Nxd4
{[%clk 00:02:52]} {[%emt 00:00:01]} 37. Rxf7 {[%clk 00:00:51]} {[%emt
00:00:14]} Nxc2 {[%clk 00:02:40]} {[%emt 00:00:17]} 38. Rf8+ {[%clk 00:00:54]}
{[%emt 00:00:03]} Bxf8 {[%clk 00:02:43]} {[%emt 00:00:01]} 39. Qxc2 {[%clk
00:00:56]} {[%emt 00:00:03]} Qxe5 {[%clk 00:02:33]} {[%emt 00:00:15]} 40. Qc4+
{[%clk 00:00:25]} {[%emt 00:00:36]} Kh8 {[%clk 00:02:36]} {[%emt 00:00:01]} 41.
Qf7 {[%clk 00:00:22]} {[%emt 00:00:08]} Bc5+ {[%clk 00:02:35]} {[%emt
00:00:08]} 42. Kh1 {[%clk 00:00:26]} Qe4+ {[%clk 00:02:36]} {[%emt 00:00:02]}
0-1